Workbook

Sheet 一般预算
A1: 2019年度沅江市一般公共预算转移支付使用情况（分项目）
A2: 录入07表
A3: 单位：万元
A4: 科目编码 | B4: 科目名称
C5: 专项转移支付 | D5: 债务收入
B7: 一般公共预算支出 | C7: =SUM(C8,C36,C46,C52,C64,C75,C86,C93,C114,C128,C144,C151,C162,C170,C178,C182,C188,C198,C204,C208,C214,C223,C224,C227,C231) -> 116,531 | D7: =SUM(D8,D36,D46,D52,D64,D75,D86,D93,D114,D128,D144,D151,D162,D170,D178,D182,D188,D198,D204,D208,D214,D223,D224,D227,D231) -> 103,552
A8: 201 | B8: 一般公共服务支出 | C8: =SUM(C9:C35) -> 605 | D8: =SUM(D9:D35) -> 416
A9: 20101 | B9: 人大事务 | C9: 0 | D9: 0
A10: 20102 | B10: 政协事务 | C10: 0 | D10: 0
A11: 20103 | B11: 政府办公厅(室)及相关机构事务 | C11: 40 | D11: 28
A12: 20104 | B12: 发展与改革事务 | C12: 40 | D12: 37
A13: 20105 | B13: 统计信息事务 | C13: 17 | D13: 17
A14: 20106 | B14: 财政事务 | C14: 183 | D14: 84
A15: 20107 | B15: 税收事务 | C15: 0 | D15: 0
A16: 20108 | B16: 审计事务 | C16: 3 | D16: 3
A17: 20109 | B17: 海关事务 | C17: 0 | D17: 0
A18: 20110 | B18: 人力资源事务 | C18: 0 | D18: 0
A19: 20111 | B19: 纪检监察事务 | C19: 0 | D19: 0
A20: 20113 | B20: 商贸事务 | C20: 26 | D20: 26
A21: 20114 | B21: 知识产权事务 | C21: 30 | D21: 30
A22: 20123 | B22: 民族事务 | C22: 1 | D22: 1
A23: 20125 | B23: 港澳台事务 | C23: 0 | D23: 0
A24: 20126 | B24: 档案事务 | C24: 0 | D24: 0
A25: 20128 | B25: 民主党派及工商联事务 | C25: 0 | D25: 0
A26: 20129 | B26: 群众团体事务 | C26: 0 | D26: 0
A27: 20131 | B27: 党委办公厅(室)及相关机构事务 | C27: 12 | D27: 0
A28: 20132 | B28: 组织事务 | C28: 63 | D28: 55
A29: 20133 | B29: 宣传事务 | C29: 0 | D29: 0
A30: 20134 | B30: 统战事务 | C30: 15 | D30: 15
A31: 20135 | B31: 对外联络事务 | C31: 0 | D31: 0
A32: 20136 | B32: 其他共产党事务支出 | C32: 0 | D32: 0
A33: 20137 | B33: 网信事务 | C33: 0 | D33: 0
A34: 20138 | B34: 市场监督管理事务 | C34: 140 | D34: 120
A35: 20199 | B35: 其他一般公共服务支出 | C35: 35 | D35: 0
A36: 202 | B36: 外交支出 | C36: =SUM(C37:C45) -> 0 | D36: =SUM(D37:D45) -> 0
A37: 20201 | B37: 外交管理事务 | C37: 0 | D37: 0
A38: 20202 | B38: 驻外机构 | C38: 0 | D38: 0
A39: 20203 | B39: 对外援助 | C39: 0 | D39: 0
A40: 20204 | B40: 国际组织 | C40: 0 | D40: 0
A41: 20205 | B41: 对外合作与交流 | C41: 0 | D41: 0
A42: 20206 | B42: 对外宣传 | C42: 0
A43: 20207 | B43: 边界勘界联检 | C43: 0 | D43: 0
A44: 20208 | B44: 国际发展合作 | C44: 0 | D44: 0
A45: 20299 | B45: 其他外交支出 | C45: 0 | D45: 0
A46: 203 | B46: 国防支出 | C46: =SUM(C47:C51) -> 78 | D46: =SUM(D47:D51) -> 20
A47: 20301 | B47: 现役部队 | C47: 0 | D47: 0
A48: 20304 | B48: 国防科研事业 | C48: 0 | D48: 0
A49: 20305 | B49: 专项工程 | C49: 0 | D49: 0
A50: 20306 | B50: 国防动员 | C50: 78 | D50: 20
A51: 20399 | B51: 其他国防支出 | C51: 0 | D51: 0
A52: 204 | B52: 公共安全支出 | C52: =SUM(C53:C63) -> 193 | D52: =SUM(D53:D63) -> 120
A53: 20401 | B53: 武装警察部队 | C53: 0 | D53: 0
A54: 20402 | B54: 公安 | C54: 167 | D54: 104
A55: 20403 | B55: 国家安全 | C55: 0 | D55: 0
A56: 20404 | B56: 检察 | C56: 0 | D56: 0
A57: 20405 | B57: 法院 | C57: 0 | D57: 0
A58: 20406 | B58: 司法 | C58: 26 | D58: 16
A59: 20407 | B59: 监狱 | C59: 0 | D59: 0
A60: 20408 | B60: 强制隔离戒毒 | C60: 0 | D60: 0
A61: 20409 | B61: 国家保密 | C61: 0 | D61: 0
A62: 20410 | B62: 缉私警察 | C62: 0 | D62: 0
A63: 20499 | B63: 其他公共安全支出 | C63: 0 | D63: 0
A64: 205 | B64: 教育支出 | C64: =SUM(C65:C74) -> 484 | D64: =SUM(D65:D74) -> 317
A65: 20501 | B65: 教育管理事务 | C65: 0 | D65: 0
A66: 20502 | B66: 普通教育 | C66: 379 | D66: 217
A67: 20503 | B67: 职业教育 | C67: 100 | D67: 100
A68: 20504 | B68: 成人教育 | C68: 5 | D68: 0
A69: 20505 | B69: 广播电视教育 | C69: 0 | D69: 0
A70: 20506 | B70: 留学教育 | C70: 0 | D70: 0
A71: 20507 | B71: 特殊教育 | C71: 0 | D71: 0
A72: 20508 | B72: 进修及培训 | C72: 0 | D72: 0
A73: 20509 | B73: 教育费附加安排的支出 | C73: 0 | D73: 0
A74: 20599 | B74: 其他教育支出 | C74: 0 | D74: 0
A75: 206 | B75: 科学技术支出 | C75: =SUM(C76:C85) -> 1,643 | D75: =SUM(D76:D85) -> 1,214
A76: 20601 | B76: 科学技术管理事务 | C76: 0 | D76: 0
A77: 20602 | B77: 基础研究 | C77: 0 | D77: 0
A78: 20603 | B78: 应用研究 | C78: 0 | D78: 0
A79: 20604 | B79: 技术研究与开发 | C79: 1,024 | D79: 1,024
A80: 20605 | B80: 科技条件与服务 | C80: 10 | D80: 10
A81: 20606 | B81: 社会科学 | C81: 0 | D81: 0
A82: 20607 | B82: 科学技术普及 | C82: 10 | D82: 10
A83: 20608 | B83: 科技交流与合作 | C83: 0 | D83: 0
A84: 20609 | B84: 科技重大项目 | C84: 80 | D84: 80
A85: 20699 | B85: 其他科学技术支出 | C85: 519 | D85: 90
A86: 207 | B86: 文化旅游体育与传媒支出 | C86: =SUM(C87:C92) -> 761 | D86: =SUM(D87:D92) -> 204
A87: 20701 | B87: 文化和旅游 | C87: 686 | D87: 134
A88: 20702 | B88: 文物 | C88: 0 | D88: 0
A89: 20703 | B89: 体育 | C89: 15 | D89: 15
A90: 20706 | B90: 新闻出版电影 | C90: 2 | D90: 2
A91: 20708 | B91: 广播电视 | C91: 35 | D91: 35
A92: 20799 | B92: 其他文化体育与传媒支出 | C92: 23 | D92: 18
A93: 208 | B93: 社会保障和就业支出 | C93: =SUM(C94:C113) -> 2,579 | D93: =SUM(D94:D113) -> 2,328
A94: 20801 | B94: 人力资源和社会保障管理事务 | C94: 1 | D94: 1
A95: 20802 | B95: 民政管理事务 | C95: 10 | D95: 10
A96: 20804 | B96: 补充全国社会保障基金 | C96: 0 | D96: 0
A97: 20805 | B97: 行政事业单位离退休 | C97: 0 | D97: 0
A98: 20806 | B98: 企业改革补助 | C98: 0 | D98: 0
A99: 20807 | B99: 就业补助 | C99: 1,808 | D99: 1,740
A100: 20808 | B100: 抚恤 | C100: 20 | D100: 20
A101: 20809 | B101: 退役安置 | C101: 113 | D101: 111
A102: 20810 | B102: 社会福利 | C102: 70 | D102: 39
A103: 20811 | B103: 残疾人事业 | C103: 260 | D103: 147
A104: 20816 | B104: 红十字事业 | C104: 0 | D104: 0
A105: 20819 | B105: 最低生活保障 | C105: 0 | D105: 0
A106: 20820 | B106: 临时救助 | C106: 22 | D106: 0
A107: 20821 | B107: 特困人员救助供养 | C107: 0 | D107: 0
A108: 20824 | B108: 补充道路交通事故社会救助基金 | C108: 0 | D108: 0
A109: 20825 | B109: 其他生活救助 | C109: 0 | D109: 0
A110: 20826 | B110: 财政对基本养老保险基金的补助 | C110: 0 | D110: 0
A111: 20827 | B111: 财政对其他社会保险基金的补助 | C111: 0 | D111: 0
A112: 20828 | B112: 退役军人管理事务 | C112: 15 | D112: 0
A113: 20899 | B113: 其他社会保障和就业支出 | C113: 260 | D113: 260
A114: 210 | B114: 卫生健康支出 | C114: =SUM(C115:C127) -> 3,047 | D114: =SUM(D115:D127) -> 1,897
A115: 21001 | B115: 卫生健康管理事务 | C115: 0 | D115: 0
A116: 21002 | B116: 公立医院 | C116: 0 | D116: 0
A117: 21003 | B117: 基层医疗卫生机构 | C117: 8 | D117: 8
A118: 21004 | B118: 公共卫生 | C118: 2,422 | D118: 1,398
A119: 21006 | B119: 中医药 | C119: 0 | D119: 0
A120: 21007 | B120: 计划生育事务 | C120: 609 | D120: 483
A121: 21011 | B121: 行政事业单位医疗 | C121: 0 | D121: 0
A122: 21012 | B122: 财政对基本医疗保险基金的补助 | C122: 0 | D122: 0
A123: 21013 | B123: 医疗救助 | C123: 0 | D123: 0
A124: 21014 | B124: 优抚对象医疗 | C124: 0 | D124: 0
A125: 21015 | B125: 医疗保障管理事务 | C125: 0 | D125: 0
A126: 21016 | B126: 老龄卫生健康事务 | C126: 0 | D126: 0
A127: 21099 | B127: 其他卫生健康支出 | C127: 8 | D127: 8
A128: 211 | B128: 节能环保支出 | C128: =SUM(C129:C143) -> 23,606 | D128: =SUM(D129:D143) -> 22,635
A129: 21101 | B129: 环境保护管理事务 | C129: 100 | D129: 0
A130: 21102 | B130: 环境监测与监察 | C130: 0 | D130: 0
A131: 21103 | B131: 污染防治 | C131: 15,213 | D131: 14,838
A132: 21104 | B132: 自然生态保护 | C132: 3,380 | D132: 3,005
A133: 21105 | B133: 天然林保护 | C133: 0 | D133: 0
A134: 21106 | B134: 退耕还林 | C134: 0 | D134: 0
A135: 21107 | B135: 风沙荒漠治理 | C135: 0 | D135: 0
A136: 21108 | B136: 退牧还草 | C136: 0 | D136: 0
A137: 21109 | B137: 已垦草原退耕还草 | C137: 0 | D137: 0
A138: 21110 | B138: 能源节约利用 | C138: 7 | D138: 7
A139: 21111 | B139: 污染减排 | C139: 2,232 | D139: 2,232
A140: 21112 | B140: 可再生能源 | C140: 0 | D140: 0
A141: 21113 | B141: 循环经济 | C141: 0 | D141: 0
A142: 21114 | B142: 能源管理事务 | C142: 0 | D142: 0
A143: 21199 | B143: 其他节能环保支出 | C143: 2,674 | D143: 2,553
A144: 212 | B144: 城乡社区支出 | C144: =SUM(C145:C150) -> 883 | D144: =SUM(D145:D150) -> 445
A145: 21201 | B145: 城乡社区管理事务 | C145: 23 | D145: 0
A146: 21202 | B146: 城乡社区规划与管理 | C146: 0 | D146: 0
A147: 21203 | B147: 城乡社区公共设施 | C147: 220 | D147: 205
A148: 21205 | B148: 城乡社区环境卫生 | C148: 0 | D148: 0
A149: 21206 | B149: 建设市场管理与监督 | C149: 0 | D149: 0
A150: 21299 | B150: 其他城乡社区支出 | C150: 640 | D150: 240
A151: 213 | B151: 农林水支出 | C151: =SUM(C152:C161) -> 70,354 | D151: =SUM(D152:D161) -> 63,066
A152: 21301 | B152: 农业 | C152: 11,693 | D152: 10,417
A153: 21302 | B153: 林业和草原 | C153: 442 | D153: 335
A154: 21303 | B154: 水利 | C154: 51,284 | D154: 45,724
A155: 21304 | B155: 南水北调 | C155: 0 | D155: 0
A156: 21305 | B156: 扶贫 | C156: 991 | D156: 991
A157: 21306 | B157: 农业综合开发 | C157: 0 | D157: 0
A158: 21307 | B158: 农村综合改革 | C158: 1,500 | D158: 1,400
A159: 21308 | B159: 普惠金融发展支出 | C159: 1,814 | D159: 1,609
A160: 21309 | B160: 目标价格补贴 | C160: 0 | D160: 0
A161: 21399 | B161: 其他农林水支出 | C161: 2,630 | D161: 2,590
A162: 214 | B162: 交通运输支出 | C162: =SUM(C163:C169) -> 5,836 | D162: =SUM(D163:D169) -> 5,676
A163: 21401 | B163: 公路水路运输 | C163: 4,800 | D163: 4,640
A164: 21402 | B164: 铁路运输 | C164: 0 | D164: 0
A165: 21403 | B165: 民用航空运输 | C165: 0 | D165: 0
A166: 21404 | B166: 成品油价格改革对交通运输的补贴 | C166: 1,036 | D166: 1,036
A167: 21405 | B167: 邮政业支出 | C167: 0 | D167: 0
A168: 21406 | B168: 车辆购置税支出 | C168: 0 | D168: 0
A169: 21499 | B169: 其他交通运输支出 | C169: 0 | D169: 0
A170: 215 | B170: 资源勘探信息等支出 | C170: =SUM(C171:C177) -> -180 | D170: =SUM(D171:D177) -> 10
A171: 21501 | B171: 资源勘探开发 | C171: 0 | D171: 0
A172: 21502 | B172: 制造业 | C172: 0 | D172: 0
A173: 21503 | B173: 建筑业 | C173: 0 | D173: 0
A174: 21505 | B174: 工业和信息产业监管 | C174: 10 | D174: 10
A175: 21507 | B175: 国有资产监管 | C175: 0 | D175: 0
A176: 21508 | B176: 支持中小企业发展和管理支出 | C176: 20 | D176: 0
A177: 21599 | B177: 其他资源勘探信息等支出 | C177: -210 | D177: 0
A178: 216 | B178: 商业服务业等支出 | C178: =SUM(C179:C181) -> 320 | D178: =SUM(D179:D181) -> 251
A179: 21602 | B179: 商业流通事务 | C179: 77 | D179: 63
A180: 21606 | B180: 涉外发展服务支出 | C180: 243 | D180: 188
A181: 21699 | B181: 其他商业服务业等支出 | C181: 0 | D181: 0
A182: 217 | B182: 金融支出 | C182: =SUM(C183:C187) -> 0 | D182: =SUM(D183:D187) -> 0
A183: 21701 | B183: 金融部门行政支出 | C183: 0 | D183: 0
A184: 21702 | B184: 金融部门监管支出 | C184: 0 | D184: 0
A185: 21703 | B185: 金融发展支出 | C185: 0 | D185: 0
A186: 21704 | B186: 金融调控支出 | C186: 0 | D186: 0
A187: 21799 | B187: 其他金融支出 | C187: 0 | D187: 0
A188: 219 | B188: 援助其他地区支出 | C188: =SUM(C189:C197) -> 0 | D188: =SUM(D189:D197) -> 0
A189: 21901 | B189: 一般公共服务 | C189: 0 | D189: 0
A190: 21902 | B190: 教育 | C190: 0 | D190: 0
A191: 21903 | B191: 文化体育与传媒 | C191: 0 | D191: 0
A192: 21904 | B192: 医疗卫生 | C192: 0 | D192: 0
A193: 21905 | B193: 节能环保 | C193: 0 | D193: 0
A194: 21906 | B194: 农业 | C194: 0 | D194: 0
A195: 21907 | B195: 交通运输 | C195: 0 | D195: 0
A196: 21908 | B196: 住房保障 | C196: 0 | D196: 0
A197: 21999 | B197: 其他支出 | C197: 0 | D197: 0
A198: 220 | B198: 自然资源海洋气象等支出 | C198: =SUM(C199:C203) -> 702 | D198: =SUM(D199:D203) -> 612
A199: 22001 | B199: 自然资源事务 | C199: 622 | D199: 532
A200: 22002 | B200: 海洋管理事务 | C200: 0 | D200: 0
A201: 22003 | B201: 测绘事务 | C201: 80 | D201: 80
... 33 more rows
